fUSD/lending_fUSD_20250209
["ID","MTS","AMOUNT","RATE_DAILY","PERIOD"]
[352424375,1739095843329,-1576.02,0.00010497,2]
[352424376,1739095843339,-1475.76,0.00010497,2]
[352424377,1739095843350,-1506.32,0.00010497,2]
[352424378,1739095843360,-1494.26,0.00010497,2]
[352424379,1739095843371,-500.0,0.00010497,2]
[352424380,1739095843382,-1208.06,0.00010497,2]
[352424381,1739095843393,-1283.21,0.00010497,2]
[352424382,1739095843403,-500.0,0.00010497,2]
[352424383,1739095843414,-500.0,0.00010497,2]
[352424384,1739095843424,-668.93,0.00010497,2]
[352424386,1739095843434,-532.29,0.00010497,2]
[352424387,1739095843445,-500.0,0.00010497,2]
[352424388,1739095843455,-500.0,0.00010497,2]
[352424389,1739095843466,-631.57,0.00010497,2]
[352424390,1739095843477,-500.0,0.00010497,2]
[352424391,1739095843489,-500.0,0.00010497,2]
[352424392,1739095843499,-500.0,0.00010497,2]
[352424393,1739095843511,-453.19677378,0.00010497,2]
[352424394,1739095843522,-1328.43,0.00010497,2]
[352424395,1739095843533,-500.0,0.00010498,2]
[352424396,1739095843544,-500.0,0.00010498,2]
[352424397,1739095843555,-500.0,0.00010498,2]
[352424398,1739095843565,-500.0,0.00010498,2]
[352424399,1739095843576,-500.0,0.00010498,2]
[352424400,1739095843586,-500.0,0.00010498,2]
[352424401,1739095843597,-500.0,0.00010498,2]
[352424402,1739095843609,-500.0,0.00010498,2]
[352424403,1739095843619,-500.0,0.00010498,2]
[352424404,1739095843630,-500.0,0.00010498,2]
[352424405,1739095843641,-500.0,0.00010498,2]
[352424406,1739095843651,-500.0,0.00010498,2]
[352424407,1739095843662,-500.0,0.00010498,2]
[352424408,1739095843673,-500.0,0.00010498,2]
[352424409,1739095843683,-500.0,0.00010498,2]
[352424410,1739095843694,-500.0,0.00010498,2]
[352424411,1739095843705,-500.0,0.00010498,2]
[352424412,1739095843716,-500.0,0.00010498,2]
[352424413,1739095843727,-500.0,0.00010498,2]
[352424414,1739095843738,-599.66,0.00010498,2]
[352424415,1739095843749,-359.09335755,0.00010498,2]
[352424416,1739095843760,-533.15,0.00010498,2]
[352424417,1739095843771,-500.0,0.00010498,2]
[352424418,1739095843782,-500.0,0.00010498,2]
[352424419,1739095843792,-500.0,0.00010498,2]
[352424420,1739095843803,-714.67,0.00010498,2]
[352424421,1739095843813,-500.0,0.00010498,2]
[352424422,1739095843824,-500.0,0.00010498,2]
[352424423,1739095843835,-548.39359317,0.00010498,2]
[352424424,1739095843845,-508.57914277,0.00010498,2]
[352424425,1739095843856,-500.0,0.00010498,2]
[352424426,1739095843867,-500.0,0.00010498,2]
[352424427,1739095843878,-500.6396317,0.00010498,2]
[352424428,1739095843889,-501.6613236,0.00010498,2]
[352424429,1739095843900,-500.0,0.00010498,2]
[352424430,1739095843910,-500.0,0.00010498,2]
[352424431,1739095843921,-502.7357243,0.00010498,2]
[352424432,1739095843932,-510.82,0.00010498,2]
[352424433,1739095843945,-500.0,0.00010498,2]
[352424434,1739095843956,-504.15202984,0.00010498,2]
[352424435,1739095843966,-576.79621403,0.00010498,2]
[352424436,1739095843978,-500.0,0.00010498,2]
[352424437,1739095843990,-507.90733075,0.00010498,2]
[352424438,1739095844001,-500.0,0.00010498,2]
[352424439,1739095844011,-500.0,0.00010498,2]
[352424440,1739095844022,-609.4885481,0.00010498,2]
[352424441,1739095844032,-500.0,0.00010498,2]
[352424442,1739095844043,-268.1251341,0.00010498,2]
[352424443,1739095844054,-500.0,0.00010498,2]
[352424444,1739095844064,-575.28,0.00010498,2]
[352424445,1739095844075,-500.0,0.00010498,2]
[352424446,1739095844086,-500.0,0.00010498,2]
[352424447,1739095844098,-155.788179,0.00010498,2]
[352424448,1739095844108,-500.0,0.00010498,2]
[352424449,1739095844119,-594.56,0.00010498,2]
[352424450,1739095844130,-1213.56,0.00010498,2]
[352424451,1739095844140,-500.0,0.00010498,2]
[352424452,1739095844151,-733.97644,0.00010498,2]
[352424453,1739095844162,-588.03,0.00010498,2]
[352424454,1739095844173,-529.87,0.00010498,2]
[352424455,1739095844183,-957.726417,0.00010498,2]
[352424456,1739095844195,-781.27,0.00010498,2]
[352424457,1739095844207,-970.52,0.00010498,2]
[352424458,1739095844218,-155.948277,0.00010498,2]
[352424459,1739095844229,-537.11,0.00010498,2]
[352424460,1739095844240,-500.0,0.00010498,2]
[352424461,1739095844250,-2972.23,0.00010498,2]
[352424462,1739095844261,-666.32,0.00010498,2]
[352424463,1739095844271,-1280.02,0.00010498,2]
[352424464,1739095844282,-1201.1,0.00010498,2]
[352424465,1739095844292,-500.0,0.00010498,2]
[352424466,1739095844303,-1268.87,0.00010498,2]
[352424467,1739095844321,-632.14,0.00010498,2]
[352424468,1739095844331,-500.0,0.00010498,2]
[352424469,1739095844341,-944.53,0.00010498,2]
[352424470,1739095844351,-702.27,0.00010498,2]
[352424471,1739095844362,-1188.01,0.00010498,2]
[352424472,1739095844373,-500.0,0.00010498,2]
[352424473,1739095844384,-2680.97,0.00010498,2]
[352424474,1739095844396,-801.63,0.00010498,2]
[352424475,1739095844406,-500.0,0.00010498,2]
[352424476,1739095844417,-500.0,0.00010498,2]
[352424477,1739095844427,-1475.77,0.00010498,2]
[352424478,1739095844438,-500.0,0.00010498,2]
[352424479,1739095844449,-679.18,0.00010498,2]
[352424480,1739095844459,-500.0,0.00010498,2]
[352424481,1739095844469,-500.0,0.00010498,2]
[352424482,1739095844480,-180.93452625,0.00010498,2]
[352424483,1739095844490,-679.7,0.00010498,2]
[352424484,1739095844501,-501.43708479,0.00010498,2]
[352424485,1739095844512,-500.0,0.00010498,2]
[352424486,1739095844523,-500.0,0.00010498,2]
[352424487,1739095844533,-770.02,0.00010498,2]
[352424488,1739095844543,-500.0,0.00010498,2]
[352424489,1739095844554,-500.0,0.00010498,2]
[352424490,1739095844565,-500.0,0.00010499,2]
[352424491,1739095844575,-500.0,0.00010499,2]
[352424492,1739095844586,-500.0,0.00010499,2]
[352424493,1739095844596,-500.0,0.00010499,2]
[352424494,1739095844607,-500.0,0.00010499,2]
[352424495,1739095844618,-500.0,0.00010499,2]
[352424496,1739095844628,-204.67117003,0.00010499,2]
[352424497,1739095844639,-500.0,0.00010499,2]
[352424498,1739095844650,-500.0,0.00010499,2]
[352424499,1739095844660,-500.0,0.00010499,2]
[352424500,1739095844670,-503.09444523,0.00010499,2]
[352424501,1739095844681,-500.0,0.00010499,2]
[352424502,1739095844691,-500.0,0.00010499,2]
[352424503,1739095844701,-500.0,0.00010499,2]
[352424504,1739095844711,-500.0,0.00010499,2]
[352424505,1739095844722,-500.0,0.00010499,2]
[352424506,1739095844733,-500.0,0.00010499,2]
[352424507,1739095844744,-500.0,0.00010499,2]
[352424508,1739095844754,-500.0,0.00010499,2]
[352424509,1739095844764,-500.0,0.00010499,2]
[352424510,1739095844774,-500.0,0.00010499,2]
[352424511,1739095844784,-500.0,0.00010499,2]
[352424512,1739095844794,-500.0,0.00010499,2]
[352424513,1739095844805,-500.0,0.00010499,2]
[352424514,1739095844815,-500.0,0.00010499,2]
[352424515,1739095844824,-500.0,0.00010499,2]
[352424516,1739095844834,-500.0,0.00010499,2]
[352424517,1739095844844,-500.0,0.00010499,2]
[352424518,1739095844854,-500.0,0.00010499,2]
[352424519,1739095844864,-500.0,0.00010499,2]
[352424520,1739095844875,-500.0,0.00010499,2]
[352424521,1739095844886,-500.0,0.00010499,2]
[352424522,1739095844896,-500.0,0.00010499,2]
[352424523,1739095844907,-1239.95,0.00010499,2]
[352424524,1739095844918,-500.0,0.00010499,2]
[352424525,1739095844929,-500.0,0.00010499,2]
[352424526,1739095844939,-500.0,0.00010499,2]
[352424527,1739095844953,-500.0,0.00010499,2]
[352424528,1739095844963,-555.71,0.00010499,2]
[352424529,1739095844973,-500.0,0.00010499,2]
[352424530,1739095844984,-500.0,0.00010499,2]
[352424531,1739095844995,-500.0,0.00010499,2]
[352424532,1739095845005,-608.35,0.00010499,2]
[352424533,1739095845017,-500.0,0.00010499,2]
[352424534,1739095845028,-500.0,0.00010499,2]
[352424535,1739095845038,-500.0,0.00010499,2]
[352424536,1739095845048,-500.0,0.00010499,2]
[352424537,1739095845059,-500.0,0.00010499,2]
[352424538,1739095845069,-500.0,0.00010499,2]
[352424539,1739095845079,-500.0,0.00010499,2]
[352424540,1739095845089,-500.0,0.00010499,2]
[352424541,1739095845099,-500.0,0.00010499,2]
[352424542,1739095845109,-500.0,0.00010499,2]
[352424543,1739095845120,-500.0,0.00010499,2]
[352424544,1739095845130,-500.0,0.00010499,2]
[352424545,1739095845543,-503.29151254,0.00010499,2]
[352424546,1739095845564,-500.0,0.00010499,2]
[352424547,1739095845582,-500.0,0.00010499,2]
[352424548,1739095845592,-500.0,0.00010499,2]
[352424549,1739095845601,-500.0,0.00010499,2]
[352424550,1739095845610,-500.0,0.00010499,2]
[352424551,1739095845620,-500.0,0.00010499,2]
[352424552,1739095845629,-500.0,0.00010499,2]
[352424553,1739095845639,-500.0,0.00010499,2]
[352424554,1739095845649,-506.7810114,0.00010499,2]
[352424555,1739095845658,-244.45442174,0.00010499,2]
[352424556,1739095845668,-500.0,0.00010499,2]
[352424558,1739095845677,-500.0,0.00010499,2]
[352424559,1739095845686,-500.0,0.00010499,2]
[352424561,1739095845695,-500.0,0.00010499,2]
[352424563,1739095845705,-500.0,0.00010499,2]
[352424565,1739095845715,-500.0,0.00010499,2]
[352424567,1739095845724,-500.0,0.00010499,2]
[352424569,1739095845733,-587.11,0.00010499,2]
[352424570,1739095845742,-500.0,0.00010499,2]
[352424571,1739095845751,-500.0,0.00010499,2]
[352424572,1739095845761,-500.0,0.00010499,2]
[352424573,1739095845770,-500.0,0.00010499,2]
[352424574,1739095845779,-500.0,0.00010499,2]
[352424575,1739095845788,-500.0,0.00010499,2]
[352424576,1739095845798,-500.0,0.00010499,2]
[352424577,1739095845807,-500.0,0.00010499,2]
[352424578,1739095845817,-500.0,0.00010499,2]
[352424579,1739095845826,-500.0,0.00010499,2]
[352424580,1739095845837,-505.48497248,0.00010499,2]
[352424582,1739095845846,-500.0,0.00010499,2]
[352424583,1739095845855,-500.0,0.00010499,2]
[352424584,1739095845865,-500.0,0.00010499,2]
[352424585,1739095845874,-500.0,0.00010499,2]
[352424587,1739095845884,-546.55,0.00010499,2]
[352424589,1739095845894,-500.0,0.00010499,2]
[352424591,1739095845904,-500.0,0.00010499,2]
[352424592,1739095845913,-500.0,0.00010499,2]
[352424593,1739095845922,-500.0,0.00010499,2]
[352424594,1739095845931,-500.0,0.00010499,2]
[352424595,1739095845943,-190.33374076,0.00010499,2]
[352424596,1739095845954,-183.97,0.00010499,2]
[352424597,1739095845964,-500.0,0.00010499,2]
[352424598,1739095845973,-550.19,0.00010499,2]
[352424599,1739095845983,-612.35,0.00010499,2]
[352424600,1739095845994,-830.04,0.00010499,2]
[352424601,1739095846003,-1383.45,0.00010499,2]
[352424602,1739095846013,-1630.8,0.00010499,2]
[352424603,1739095846023,-500.0,0.00010499,2]
[352424604,1739095846033,-1585.45,0.00010499,2]
[352424605,1739095846042,-654.07,0.00010499,2]
[352424606,1739095846051,-636.24,0.00010499,2]
[352424607,1739095846060,-1390.89,0.00010499,2]
[352424608,1739095846070,-591.04,0.00010499,2]
[352424609,1739095846079,-782.96,0.00010499,2]
[352424611,1739095846090,-782.96,0.00010499,2]
[352424613,1739095846099,-782.96,0.00010499,2]
[352424615,1739095846109,-782.96,0.00010499,2]
[352424616,1739095846118,-782.96,0.00010499,2]
[352424618,1739095846128,-782.96,0.00010499,2]
[352424620,1739095846137,-782.96,0.00010499,2]
[352424622,1739095846147,-782.96,0.00010499,2]
[352424624,1739095846157,-782.96,0.00010499,2]
[352424626,1739095846167,-782.96,0.00010499,2]
[352424627,1739095846176,-782.96,0.00010499,2]
[352424628,1739095846186,-2273.72,0.00010499,2]
[352424629,1739095846197,-500.0,0.00010499,2]
[352424630,1739095846207,-819.17,0.00010499,2]
[352424631,1739095846216,-1111.04,0.00010499,2]
[352424632,1739095846226,-1302.26,0.00010499,2]
[352424633,1739095846235,-1487.54,0.00010499,2]
[352424634,1739095846244,-500.0,0.00010499,2]
[352424635,1739095846253,-1111.22,0.00010499,2]
[352424636,1739095846262,-1031.34,0.00010499,2]
[352424637,1739095846272,-500.0,0.00010499,2]
[352424638,1739095846281,-277.3803681,0.00010499,2]
[352424639,1739095846291,-500.0,0.00010499,2]
[352424640,1739095846301,-500.0,0.00010499,2]
[352424641,1739095846310,-967.2,0.00010499,2]
[352424642,1739095846320,-747.38,0.00010499,2]
[352424643,1739095846329,-500.0,0.00010499,2]
[352424644,1739095846339,-1032.96,0.00010499,2]
[352424645,1739095846348,-829.73,0.00010499,2]
[352424646,1739095846357,-669.95,0.00010499,2]
[352424647,1739095846367,-500.0,0.00010499,2]
[352424648,1739095846376,-538.24687226,0.00010499,2]
[352424649,1739095846392,-500.0,0.00010499,2]
[352424650,1739095846402,-1044.85,0.00010499,2]
[352424651,1739095846411,-1479.18,0.00010499,2]
[352424652,1739095846420,-600.5055646,0.00010499,2]
[352424653,1739095846430,-698.47,0.00010499,2]
[352424654,1739095846439,-1465.35,0.00010499,2]
[352424655,1739095846449,-218.10559198,0.00010499,2]
[352424656,1739095846458,-1918.5,0.00010499,2]
[352424657,1739095846467,-500.0,0.00010499,2]
[352424658,1739095846477,-555.71738123,0.00010499,2]
[352424659,1739095846486,-1080.16,0.00010499,2]
[352424660,1739095846495,-1493.17,0.00010499,2]
[352424661,1739095846505,-500.0,0.00010499,2]
[352424662,1739095846514,-500.0,0.00010499,2]
[352424663,1739095846524,-500.0,0.00010499,2]
[352424664,1739095846534,-533.9960674,0.00010499,2]
[352424665,1739095846543,-1116.87,0.00010499,2]
[352424666,1739095846553,-500.0,0.00010499,2]
[352424667,1739095846563,-1703.91,0.00010499,2]
[352424668,1739095846573,-502.78958226,0.00010499,2]
[352424669,1739095846583,-1227.31,0.00010499,2]
[352424670,1739095846592,-500.0,0.00010499,2]
[352424671,1739095846602,-500.0,0.00010499,2]
[352424672,1739095846611,-955.79,0.00010499,2]
[352424673,1739095846621,-509.24,0.00010499,2]
[352424674,1739095846630,-1379.38,0.00010499,2]
[352424675,1739095846640,-500.0,0.00010499,2]
[352424676,1739095846651,-3396.14,0.00010499,2]
[352424677,1739095846661,-500.0,0.00010499,2]
[352424678,1739095846671,-1580.08,0.00010499,2]
[352424679,1739095846681,-506.37373026,0.00010499,2]
[352424680,1739095846690,-1184.37,0.00010499,2]
[352424681,1739095846699,-500.0,0.00010499,2]
[352424682,1739095846709,-525.38940355,0.00010499,2]
[352424683,1739095846719,-1373.36,0.00010499,2]
[352424684,1739095846728,-783.87,0.00010499,2]
[352424685,1739095846737,-1000.0,0.00010499,2]
[352424686,1739095846747,-1456.24,0.00010499,2]
[352424687,1739095846756,-756.71,0.00010499,2]
[352424688,1739095846765,-1314.38,0.00010499,2]
[352424689,1739095846775,-500.0,0.00010499,2]
[352424690,1739095846784,-500.0,0.00010499,2]
[352424691,1739095846793,-912.33,0.00010499,2]
[352424692,1739095846803,-500.0,0.00010499,2]
[352424693,1739095846812,-743.47,0.00010499,2]
[352424694,1739095846821,-557.2,0.00010499,2]
[352424695,1739095846831,-1107.21,0.00010499,2]
[352424696,1739095846841,-1216.55,0.00010499,2]
[352424697,1739095846851,-1685.79,0.00010499,2]
[352424698,1739095846860,-1209.48,0.00010499,2]
[352424699,1739095846870,-500.0,0.00010499,2]
[352424700,1739095846879,-500.0,0.00010499,2]
[352424701,1739095846889,-500.0,0.00010499,2]
[352424702,1739095846899,-574.57,0.00010499,2]
[352424703,1739095846908,-500.0,0.00010499,2]
[352424704,1739095846917,-500.0,0.00010499,2]
[352424705,1739095846928,-500.0,0.00010499,2]
[352424707,1739095846937,-1320.75,0.00010499,2]
[352424708,1739095846950,-834.03,0.00010499,2]
[352424710,1739095846959,-500.0,0.00010499,2]
[352424711,1739095846969,-500.0,0.00010499,2]
[352424713,1739095846978,-912.85,0.00010499,2]
[352424714,1739095846987,-500.0,0.00010499,2]
[352424715,1739095846997,-1117.53,0.00010499,2]
[352424716,1739095847006,-500.0,0.00010499,2]
[352424717,1739095847015,-330734.570148,0.000105,2]
[352424718,1739095847034,-354.44559814,0.000105,2]
[352424719,1739095847045,-322.310568,0.000105,2]
[352424720,1739095847056,-952.93133967,0.000105,2]
[352424721,1739095847068,-321.5919,0.000105,2]
[352424722,1739095847094,-984.94014916,0.000105,2]
[352424723,1739095847106,-930.03741034,0.000105,2]
[352424724,1739095847133,-3130.59417861,0.000105,2]
[352424725,1739095847144,-787.36,0.000105,2]
[352424726,1739095847158,-2295.0,0.000105,2]
[352424727,1739095847178,-32093.83964115,0.000105,2]
[352424728,1739095847190,-883.79305964,0.000105,2]
[352424729,1739095847202,-669.13760349,0.000105,2]
[352424730,1739095847213,-695.34511427,0.000105,2]
[352424731,1739095848053,-150.0,9.729e-05,2]
[352424732,1739095848065,-150.0,9.764e-05,2]
[352424733,1739095848076,-150.0,9.902e-05,2]
[352424734,1739095848086,-150.0,9.936e-05,2]
[352424735,1739095848096,-150.0,0.00010006,2]
[352424736,1739095848106,-150.0,0.00010429,2]
[352424737,1739095848117,-500.0,0.00010498,2]
[352424738,1739095848127,-61.71998,0.00010499,2]
[352424739,1739095848153,-438.28002,0.00010499,2]
[352424740,1739095848163,-2661.72028,0.000105,2]
[352424741,1739095848176,-19600.0,0.000105,2]
[352424742,1739095848533,-500.0,0.00010499,2]
[352424743,1739095848546,-51.275395,0.000105,2]
[352424744,1739095848562,-397.87610775,0.000105,2]
[352424745,1739095848576,-2068349.5493675,0.000105,2]
[352424746,1739095848587,-150.0,0.00010515,2]
[352424747,1739095848599,-329.9,0.00010531,2]
[352424748,1739095848611,-500.0,0.00010532,2]
[352424749,1739095848621,-500.0,0.00010532,2]
[352424750,1739095848632,-500.0,0.00010532,2]
[352424751,1739095848644,-500.0,0.00010532,2]
[352424752,1739095848656,-500.0,0.00010532,2]
[352424753,1739095848668,-500.0,0.00010532,2]
[352424754,1739095848679,-500.0,0.00010532,2]
[352424755,1739095848690,-500.0,0.00010532,2]
[352424756,1739095848702,-500.0,0.00010532,2]
[352424757,1739095848714,-622.21,0.00010532,2]
[352424758,1739095848726,-500.0,0.00010532,2]
[352424759,1739095848738,-1087.04,0.00010532,2]
[352424760,1739095848750,-500.0,0.00010532,2]
[352424761,1739095848761,-500.0,0.00010532,2]
[352424762,1739095848772,-500.0,0.00010532,2]
[352424763,1739095849041,-500.0,0.00010532,2]
[352424764,1739095849063,-307.8,0.00010532,2]
[352424765,1739095849074,-517.6,0.00010532,2]
[352424766,1739095849086,-500.0,0.00010532,2]
[352424767,1739095849098,-500.0,0.00010532,2]
[352424768,1739095849109,-500.0,0.00010532,2]
[352424769,1739095849120,-500.0,0.00010532,2]
[352424770,1739095849131,-500.0,0.00010532,2]
[352424771,1739095849141,-685.98,0.00010532,2]
[352424772,1739095849153,-500.0,0.00010532,2]
[352424773,1739095849163,-413.8,0.00010532,2]
[352424774,1739095849174,-500.0,0.00010532,2]
[352424775,1739095849185,-500.0,0.00010532,2]
[352424776,1739095849195,-500.0,0.00010532,2]
[352424777,1739095849206,-500.0,0.00010532,2]
[352424778,1739095849216,-500.0,0.00010532,2]
[352424779,1739095849226,-500.0,0.00010532,2]
[352424780,1739095849237,-614.19,0.00010532,2]
[352424781,1739095849248,-500.0,0.00010532,2]
[352424782,1739095849258,-500.0,0.00010532,2]
[352424783,1739095849269,-500.0,0.00010532,2]
[352424784,1739095849279,-500.0,0.00010532,2]
[352424785,1739095849290,-500.0,0.00010532,2]
[352424786,1739095849301,-500.0,0.00010532,2]
[352424787,1739095849311,-500.0,0.00010532,2]
[352424788,1739095849322,-576.84,0.00010532,2]
[352424789,1739095849333,-500.0,0.00010532,2]
[352424790,1739095849344,-500.0,0.00010532,2]
[352424791,1739095849354,-500.0,0.00010532,2]
[352424792,1739095849365,-500.0,0.00010532,2]
[352424793,1739095849375,-500.0,0.00010532,2]
[352424794,1739095849385,-504.41818687,0.00010532,2]
[352424795,1739095849396,-500.0,0.00010532,2]
[352424796,1739095849407,-500.0,0.00010532,2]
[352424797,1739095849417,-500.0,0.00010532,2]
[352424798,1739095849426,-505.45359466,0.00010532,2]
[352424799,1739095849436,-665.4,0.00010532,2]
[352424800,1739095849446,-500.0,0.00010532,2]
[352424801,1739095849456,-500.0,0.00010532,2]
[352424802,1739095849467,-500.0,0.00010532,2]
[352424803,1739095849478,-500.0,0.00010532,2]
[352424804,1739095849489,-650.78,0.00010532,2]
[352424805,1739095849499,-500.0,0.00010532,2]
[352424806,1739095849510,-692.49,0.00010532,2]
[352424807,1739095849521,-1032.18,0.00010532,2]
[352424808,1739095849531,-500.0,0.00010532,2]
[352424809,1739095849541,-500.0,0.00010532,2]
[352424810,1739095849551,-500.0,0.00010532,2]
[352424811,1739095849562,-500.0,0.00010532,2]
[352424812,1739095849572,-500.0,0.00010532,2]
[352424813,1739095849581,-500.0,0.00010532,2]
[352424814,1739095849591,-500.0,0.00010532,2]
[352424815,1739095849601,-577.91,0.00010532,2]
[352424816,1739095849613,-500.0,0.00010532,2]
[352424817,1739095849622,-500.0,0.00010532,2]
[352424818,1739095849632,-583.79,0.00010532,2]
[352424819,1739095849641,-500.0,0.00010532,2]
[352424820,1739095849652,-711.52,0.00010532,2]
[352424821,1739095849661,-829.67,0.00010532,2]
[352424822,1739095849671,-500.0,0.00010532,2]
[352424823,1739095849680,-500.0,0.00010532,2]
[352424824,1739095849690,-500.0,0.00010532,2]
[352424825,1739095849700,-755.01,0.00010532,2]
[352424826,1739095849710,-577.83,0.00010532,2]
[352424827,1739095849719,-759.26,0.00010532,2]
[352424828,1739095849729,-500.0,0.00010532,2]
[352424829,1739095849739,-508.77,0.00010536,2]
[352424830,1739095849748,-610.35,0.00010537,2]
[352424831,1739095849758,-500.0,0.00010537,2]
[352424832,1739095849767,-704.18,0.00010537,2]
[352424833,1739095849776,-500.0,0.00010537,2]
[352424834,1739095849786,-500.0,0.00010537,2]
[352424835,1739095849795,-500.0,0.00010537,2]
[352424836,1739095849805,-641.82,0.00010537,2]
[352424837,1739095849814,-500.0,0.00010537,2]
[352424838,1739095849823,-500.0,0.00010537,2]
[352424839,1739095849832,-756.47,0.00010537,2]
[352424840,1739095849841,-500.0,0.00010537,2]
[352424841,1739095849850,-511.83473623,0.00010537,2]
[352424842,1739095849859,-150.0,0.00010539,2]
[352424843,1739095849870,-150.0,0.0001055,2]
[352424844,1739095849879,-1000.0,0.00010571,2]
[352424845,1739095849889,-300.0,0.000106,2]
[352424846,1739095849899,-439.73,0.00010623,2]
[352424847,1739095849909,-439.73,0.00010623,2]
[352424848,1739095849918,-1388.81,0.00010623,2]
[352424849,1739095849928,-500.0,0.00010633,2]
[352424850,1739095849939,-1152.27,0.00010634,2]
[352424851,1739095849953,-724.17,0.00010634,2]
[352424852,1739095849963,-1132.72,0.00010634,2]
[352424853,1739095849972,-1357.8,0.00010634,2]
[352424854,1739095849981,-500.0,0.00010634,2]
[352424855,1739095849993,-1150.02,0.00010634,2]
[352424856,1739095850002,-880.85,0.00010634,2]
[352424857,1739095850012,-1015.0,0.00010634,2]
[352424858,1739095850022,-500.0,0.00010634,2]
[352424859,1739095850031,-1257.71,0.00010634,2]
[352424860,1739095850041,-1341.32,0.00010634,2]
[352424861,1739095850051,-698.83,0.00010634,2]
[352424862,1739095850060,-1461.08,0.00010634,2]
[352424863,1739095850070,-1576.02,0.00010634,2]
[352424864,1739095850079,-1475.76,0.00010634,2]
[352424865,1739095850088,-1506.32,0.00010634,2]
[352424866,1739095850098,-1494.26,0.00010634,2]
[352424867,1739095850107,-500.0,0.00010634,2]
[352424868,1739095850118,-1208.06,0.00010634,2]
[352424869,1739095850128,-1283.21,0.00010634,2]
[352424870,1739095850137,-500.0,0.00010634,2]
[352424871,1739095850147,-500.0,0.00010634,2]
[352424872,1739095850156,-668.93,0.00010634,2]
[352424873,1739095850166,-532.29,0.00010634,2]
[352424874,1739095850175,-500.0,0.00010634,2]
[352424875,1739095850184,-500.0,0.00010634,2]
[352424876,1739095850193,-631.57,0.00010634,2]
[352424877,1739095850203,-500.0,0.00010634,2]
[352424878,1739095850212,-500.0,0.00010634,2]
[352424879,1739095850221,-1328.43,0.00010634,2]
[352424880,1739095850231,-500.0,0.00010635,2]
[352424881,1739095850240,-500.0,0.00010635,2]
[352424882,1739095850250,-500.0,0.00010635,2]
[352424883,1739095850260,-500.0,0.00010635,2]
[352424884,1739095850270,-500.0,0.00010635,2]
[352424885,1739095850279,-500.0,0.00010635,2]
[352424886,1739095850288,-500.0,0.00010635,2]
[352424887,1739095850297,-500.0,0.00010635,2]
[352424888,1739095850307,-536.13299349,0.00010635,2]
[352424889,1739095850317,-500.0,0.00010635,2]
[352424890,1739095850326,-500.0,0.00010635,2]
[352424891,1739095850335,-500.0,0.00010635,2]
[352424892,1739095850345,-500.0,0.00010635,2]
[352424893,1739095850355,-500.0,0.00010635,2]
[352424894,1739095850364,-500.0,0.00010635,2]
[352424895,1739095850373,-500.0,0.00010635,2]
[352424896,1739095850383,-500.0,0.00010635,2]